bitfinex-derivatives/quotes_ETHF0:USTF0_20260226
["timestamp","ask_amount","ask_price","bid_price","bid_amount"]
[1772110443318,0.58711312,2070.5,2069.4,0.94225741]
[1772110443516,0.58711312,2070.5,2069.4,7.27225741]
[1772110443919,0.58711312,2070.5,2069.5,0.94225741]
[1772110444322,0.90406572,2070.3,2069.5,0.94817961]
[1772110444522,0.90406572,2070.3,2069.5,0.0059222]
[1772110444819,0.89814352,2070.2,2069.1,7.27225741]
[1772110445122,0.89814352,2070.2,2069.2,0.94225741]
[1772110445921,0.89814352,2070.2,2069.2,0.94667635]
[1772110451228,0.87144215,2069.9,2069.2,0.94667635]
[1772110451930,0.87069469,2069.7,2069.2,0.00441894]
[1772110452325,0.87069469,2069.7,2069.2,0.94667635]
[1772110453132,0.87069469,2069.7,2069.2,0.00441894]
[1772110454031,0.87069469,2069.7,2069.2,0.94667635]
[1772110457432,0.87073698,2069.8,2069.3,0.94225741]
[1772110457639,0.87073698,2069.9,2069.5,0.94225741]
[1772110458141,1.17671038,2070.4,2069.5,0.94225741]
[1772110458437,7.39361878,2070.3,2069.5,0.94225741]
[1772110458638,7.39361878,2070.2,2069.5,0.94225741]
[1772110458838,7.39361878,2070.1,2069.5,0.94225741]
[1772110459041,1.17671038,2070.4,2069.5,0.94225741]
[1772110459240,7.39506901,2070.3,2069.5,0.94225741]
[1772110459441,7.39506901,2070.2,2069.5,0.94225741]
[1772110459642,7.39506901,2070.1,2069.5,0.94225741]
[1772110459842,1.17671038,2070.4,2069.5,0.94225741]
[1772110460035,7.3954744,2070.3,2069.5,0.94225741]
[1772110460240,7.3954744,2070.2,2069.5,0.94225741]
[1772110460440,7.3954744,2070.1,2069.5,0.94225741]
[1772110460741,1.17671038,2070.4,2069.5,0.94225741]
[1772110461043,7.39675557,2070.3,2069.5,0.94225741]
[1772110461242,7.39675557,2070.2,2069.5,0.94225741]
[1772110461543,7.39687157,2070.1,2069.5,0.94225741]
[1772110461737,1.17671038,2070.2,2069.5,0.94225741]
[1772110461937,7.3968836,2070.1,2069.5,0.94225741]
[1772110462138,1.17671038,2070.2,2069.5,0.94225741]
[1772110462337,7.39764585,2070.1,2069.5,0.94225741]
[1772110462543,1.17671038,2070.0,2069.3,1.01007547]
[1772110462745,1.17671038,2070.2,2069.3,1.01007547]
[1772110462947,7.39772419,2070.1,2069.3,1.01007547]
[1772110463140,1.17671038,2070.2,2069.3,1.01007547]
[1772110463341,7.3991992,2070.1,2069.3,1.01007547]
[1772110463640,1.17671038,2070.2,2069.3,1.01007547]
[1772110464246,1.17671038,2070.4,2069.5,1.00993866]
[1772110464442,7.4014287,2070.3,2069.5,1.00993866]
[1772110464647,7.4014287,2070.2,2069.5,1.00993866]
[1772110464841,1.17671038,2070.4,2069.5,1.00993866]
[1772110465042,7.40143178,2070.3,2069.5,1.00993866]
[1772110465346,7.40143178,2070.2,2069.5,1.00993866]
[1772110465546,1.17671038,2070.4,2069.5,1.00993866]
[1772110465748,7.40278175,2070.3,2069.5,1.00993866]
[1772110465948,7.40278175,2070.2,2069.7,1.01038321]
[1772110466148,0.24654711,2070.5,2069.7,1.01038321]
[1772110466349,7.40417951,2070.4,2069.7,1.01038321]
[1772110466650,7.40417951,2070.3,2069.7,1.01038321]
[1772110466949,7.40417951,2070.2,2069.7,1.01038321]
[1772110467145,0.24654711,2070.5,2069.7,1.01038321]
[1772110467350,7.40589047,2070.4,2069.7,1.01038321]
[1772110467551,7.40589047,2070.3,2069.7,1.01038321]
[1772110467851,0.24654711,2070.5,2069.7,1.01038321]
[1772110468050,7.40581127,2070.4,2069.7,1.01038321]
[1772110468251,7.40581127,2070.3,2069.7,1.01038321]
[1772110468447,7.40581127,2070.3,2069.6,1.0112081]
[1772110470049,0.24654711,2070.5,2069.6,1.0112081]
[1772110470346,1.17671038,2070.3,2069.5,1.01091807]
[1772110470547,7.40978097,2070.2,2069.5,1.01091807]
[1772110473652,7.40978097,2070.1,2069.5,1.01091807]
[1772110473848,1.17671038,2070.3,2069.5,1.01091807]
[1772110474152,7.60842627,2070.2,2069.5,1.01091807]
[1772110474353,7.60842627,2070.1,2069.5,1.01091807]
[1772110474652,7.60842627,2070.0,2069.5,1.01091807]
[1772110474855,1.17671038,2069.9,2069.3,1.01097353]
[1772110475153,1.17671038,2070.1,2069.3,1.01097353]
[1772110475354,7.60923099,2070.0,2069.3,1.01097353]
[1772110475650,1.17671038,2070.3,2069.3,1.01097353]
[1772110475954,7.60893767,2070.2,2069.3,1.01097353]
[1772110476252,7.60893767,2070.1,2069.3,1.01097353]
[1772110476455,7.60893767,2070.0,2069.3,1.01097353]
[1772110476653,7.60893767,2069.9,2069.3,1.01097353]
[1772110476855,1.17671038,2070.3,2069.3,1.01097353]
[1772110477049,7.60904718,2070.2,2069.3,1.01097353]
[1772110477348,7.60904718,2070.1,2069.3,1.01097353]
[1772110477548,7.60904718,2070.0,2069.3,1.01097353]
[1772110477749,7.60904718,2069.9,2069.3,1.01097353]
[1772110477950,1.17671038,2070.3,2069.3,1.01097353]
[1772110478257,7.60904122,2070.2,2069.3,1.01097353]
[1772110478449,7.60904122,2070.1,2069.3,1.01097353]
[1772110478652,7.60904122,2070.0,2069.2,0.00441894]
[1772110478955,1.17671038,2069.8,2069.2,0.00441894]
[1772110479161,1.17671038,2070.0,2069.2,1.02121977]
[1772110479461,7.60947676,2069.9,2069.2,1.02121977]
[1772110479756,1.17671038,2070.0,2069.2,1.02121977]
[1772110479959,7.60947676,2069.9,2069.2,1.02121977]
[1772110480158,7.60947676,2069.8,2069.2,1.02121977]
[1772110480354,1.17671038,2070.0,2069.2,1.02121977]
[1772110480560,7.60980873,2069.9,2069.2,1.02121977]
[1772110480762,7.60980873,2069.8,2069.2,1.02121977]
[1772110480955,1.17671038,2070.0,2069.2,1.02121977]
[1772110481260,7.60952894,2069.9,2069.2,1.02121977]
[1772110481461,7.60952894,2069.8,2069.3,1.01563289]
[1772110481652,7.46901951,2070.2,2069.5,1.01563289]
[1772110481653,0.24152,2070.2,2069.5,1.01563289]
[1772110481850,7.60888458,2070.1,2069.5,1.01563289]
[1772110482055,7.60888458,2070.0,2069.5,1.01563289]
[1772110482256,7.60888458,2069.9,2069.5,1.01563289]
[1772110482455,1.41823038,2070.2,2069.5,1.01563289]
[1772110482754,7.6090857,2070.1,2069.5,1.01563289]
[1772110482962,7.6090857,2070.0,2069.5,1.01563289]
[1772110483156,7.6090857,2069.9,2069.5,1.01563289]
[1772110483364,1.41823038,2070.2,2069.5,1.01563289]
[1772110483561,7.60908384,2070.1,2069.5,1.01563289]
[1772110483861,7.60908384,2070.0,2069.5,1.01563289]
[1772110484158,7.60908384,2069.9,2069.5,1.01563289]
[1772110484461,4.05235657,2070.1,2069.5,1.01563289]
[1772110484661,7.60893071,2070.0,2069.5,1.01563289]
[1772110484861,7.60893071,2069.9,2069.5,1.01563289]
[1772110485162,4.05235657,2070.1,2069.4,1.01600428]
[1772110485366,7.60934209,2070.0,2069.4,1.01600428]
[1772110485660,7.60934209,2069.9,2069.4,1.01600428]
[1772110485860,7.60934209,2069.8,2069.4,1.01600428]
[1772110486063,4.05235657,2070.1,2069.4,1.01600428]
[1772110486363,7.60919229,2070.0,2069.4,1.01600428]
[1772110486557,7.60919229,2069.9,2069.4,1.01600428]
[1772110486761,7.60919229,2069.8,2069.4,1.01600428]
[1772110486964,4.05235657,2070.1,2069.4,1.01600428]
[1772110487264,7.60918833,2070.0,2069.4,1.01600428]
[1772110487562,7.60918833,2069.9,2069.4,1.01600428]
[1772110487762,7.60918833,2069.8,2069.4,1.01600428]
[1772110488064,4.05235657,2070.1,2069.4,1.01600428]
[1772110488265,7.60918833,2070.0,2069.4,1.01600428]
[1772110488563,7.60918833,2069.9,2069.4,1.01600428]
[1772110488863,7.60918833,2069.8,2069.4,1.01600428]
[1772110489064,4.05235657,2070.1,2069.4,1.01600428]
[1772110489263,7.60919039,2070.0,2069.4,1.01600428]
[1772110489464,7.60919039,2069.9,2069.4,1.01600428]
[1772110489764,4.05235657,2070.1,2069.4,1.01600428]
[1772110489965,7.60919039,2070.0,2069.4,1.01600428]
[1772110490264,7.60919039,2069.9,2069.4,1.01600428]
[1772110490466,4.05235657,2070.1,2069.4,1.01600428]
[1772110490665,7.60919008,2070.0,2069.4,1.01600428]
[1772110490864,7.60919008,2069.9,2069.4,1.01600428]
[1772110491066,4.05235657,2070.1,2069.4,1.01600428]
[1772110491266,7.60919039,2070.0,2069.4,1.01600428]
[1772110491468,7.60919039,2069.9,2069.4,1.01600428]
[1772110491659,4.05235657,2070.1,2069.4,1.01600428]
[1772110491965,7.60919039,2070.0,2069.4,1.01600428]
[1772110492267,7.60919039,2069.9,2069.4,1.01600428]
[1772110492467,4.05235657,2070.1,2069.5,1.02424686]
[1772110492663,7.60887703,2070.0,2069.5,1.02424686]
[1772110492865,14.50035657,2070.2,2069.7,1.02424686]
[1772110493066,7.60876232,2070.1,2069.6,1.02413569]
[1772110493268,7.60876232,2070.0,2069.6,1.02413569]
[1772110493465,14.50035657,2070.2,2069.6,1.02413569]
[1772110493665,7.60875686,2070.1,2069.6,1.02413569]
[1772110493866,7.60875686,2070.0,2069.6,1.02413569]
[1772110494067,4.05235657,2070.2,2069.6,1.02413569]
[1772110494268,7.60854875,2070.1,2069.6,1.02413569]
[1772110494572,7.60854875,2070.0,2069.6,1.02413569]
[1772110494772,4.05235657,2070.2,2069.6,1.02413569]
[1772110494972,7.60851042,2070.1,2069.6,1.02413569]
[1772110495172,7.60851042,2070.0,2069.3,1.0233134]
[1772110495472,1.17671038,2070.0,2069.3,1.0233134]
[1772110495672,5.22906695,2070.2,2069.3,1.0233134]
[1772110495878,7.60878918,2070.1,2069.3,1.0233134]
[1772110496078,7.60878918,2070.0,2069.3,1.0233134]
[1772110496278,7.60878918,2069.9,2069.3,1.0233134]
[1772110496480,5.22906695,2070.2,2069.3,1.0233134]
[1772110496674,7.60904473,2070.1,2069.3,1.0233134]
[1772110496876,7.60904473,2070.0,2069.4,1.02262861]
[1772110497075,4.05235657,2070.3,2069.6,1.02262861]
[1772110497275,7.60822344,2070.2,2069.6,1.02262861]
[1772110497480,7.60822344,2070.1,2069.6,1.02262861]
[1772110497679,7.60822344,2070.0,2069.6,1.02262861]
[1772110497881,1.17671038,2070.1,2069.4,1.02264795]
[1772110498082,7.60896116,2070.0,2069.4,1.02264795]
[1772110498281,1.17671038,2070.1,2069.4,1.02264795]
[1772110498483,7.57767493,2070.0,2069.4,1.02264795]
[1772110498683,1.17671038,2070.1,2069.4,1.02264795]
[1772110498984,7.57767378,2070.0,2069.4,1.02264795]
[1772110499284,1.17671038,2070.1,2069.4,1.02264795]
[1772110499481,7.57543509,2070.0,2069.4,1.02264795]
[1772110499681,7.57543509,2069.9,2069.4,1.02264795]
[1772110499880,4.05235657,2070.2,2069.4,1.02264795]
[1772110500082,7.57543656,2070.1,2069.4,1.02264795]
[1772110500283,7.57543656,2070.0,2069.4,1.02264795]
[1772110500582,7.57543656,2069.9,2069.4,1.02264795]
[1772110500782,4.05235657,2070.2,2069.4,1.02264795]
[1772110500983,7.57587636,2070.1,2069.4,1.02264795]
[1772110501183,7.57587636,2070.0,2069.4,1.02264795]
[1772110501483,7.57587636,2069.9,2069.4,1.02264795]
[1772110501784,4.05235657,2070.2,2069.4,1.02264795]
[1772110501980,7.57623096,2070.1,2069.4,1.02264795]
[1772110502179,7.57623096,2070.0,2069.4,1.02264795]
[1772110502382,7.57623096,2069.9,2069.4,1.02264795]
[1772110502583,4.05235657,2070.2,2069.4,1.02264795]
[1772110502781,8.75333479,2070.1,2069.2,1.02398543]
[1772110502977,1.17671038,2069.9,2069.2,1.02398543]
[1772110503176,7.57712965,2069.8,2069.2,1.02398543]
[1772110503382,1.17671038,2069.9,2069.2,1.02398543]
[1772110503690,7.5771292,2069.8,2069.2,1.02398543]
[1772110503986,1.17671038,2069.9,2069.2,1.02398543]
[1772110504177,7.57712943,2069.8,2069.2,1.02398543]
[1772110504383,1.17671038,2069.9,2069.2,1.02398543]
[1772110504682,7.57750819,2069.8,2069.2,1.02398543]
[1772110504883,10.483,2070.0,2069.2,1.02398543]
[1772110505183,7.57750034,2069.9,2069.6,1.02086815]
[1772110505485,4.05235657,2070.1,2069.6,1.02086815]
[1772110505683,7.56475078,2070.0,2069.6,1.02086815]
[1772110505885,4.05235657,2070.2,2069.6,1.02086815]
[1772110506088,14.53635657,2070.4,2069.8,1.02088609]
[1772110506286,10.484,2070.4,2069.8,1.02088609]
[1772110506487,0.00505711,2070.5,2069.8,1.02088609]
[1772110510786,0.00505711,2070.5,2069.9,1.17671038]
[1772110510991,0.00505711,2070.5,2070.0,1.03014716]
[1772110511791,1.18176749,2070.5,2069.8,1.03014716]
[1772110511993,1.18176749,2070.5,2069.6,1.03016217]
[1772110511994,1.17671038,2070.3,2069.6,1.03016217]
[1772110512192,1.17671038,2070.1,2069.6,1.03016217]
[1772110512589,1.17671038,2070.3,2069.6,1.03016217]
[1772110513494,4.05741368,2070.5,2069.6,1.03016217]
[1772110514792,0.00505711,2070.5,2069.6,1.03016217]
[1772110515891,4.05741368,2070.5,2069.6,1.03016217]
[1772110518090,7.20983857,2070.4,2069.6,1.03016217]
[1772110518292,7.20983857,2070.3,2069.6,1.03016217]
[1772110518492,7.20983857,2070.2,2069.6,1.03016217]
[1772110518693,4.05741368,2070.5,2069.6,1.03016217]
[1772110518893,7.20025004,2070.4,2069.6,1.03016217]
[1772110519191,7.20025004,2070.3,2069.6,1.03016217]
[1772110519393,7.20025004,2070.2,2069.6,1.03016217]
[1772110519593,4.05741368,2070.5,2069.6,1.03016217]
[1772110519795,7.20056152,2070.4,2069.6,1.03016217]
[1772110519995,7.20056152,2070.3,2069.6,1.03016217]
[1772110520197,7.20056152,2070.2,2069.6,1.03016217]
[1772110520399,4.05741368,2070.5,2069.6,1.03016217]
[1772110520697,7.2008997,2070.4,2069.6,1.03016217]
[1772110520897,7.2008997,2070.3,2069.6,1.03016217]
[1772110521098,7.2008997,2070.2,2069.6,1.03016217]
[1772110521301,4.05741368,2070.5,2069.6,1.03016217]
[1772110521597,7.20126804,2070.4,2069.6,1.03016217]
[1772110521796,7.20126804,2070.3,2069.6,1.03016217]
[1772110522097,7.20126804,2070.2,2069.6,1.03016217]
[1772110522398,4.05235657,2070.4,2069.6,1.03016217]
[1772110522700,7.20177606,2070.3,2069.6,1.03016217]
[1772110522898,7.20177606,2070.2,2069.6,1.03016217]
[1772110523200,4.05235657,2070.4,2069.6,1.03016217]
[1772110523499,7.20183057,2070.3,2069.6,1.03016217]
[1772110523697,7.20183057,2070.2,2069.6,1.03016217]
[1772110523897,4.05235657,2070.4,2069.6,1.03016217]
[1772110524094,4.05235657,2070.4,2069.2,0.24603894]
[1772110524095,7.20183057,2070.3,2069.3,1.03689181]
[1772110524295,7.20183057,2070.2,2069.3,1.03689181]
[1772110524599,17.72283057,2070.2,2069.3,1.03689181]
[1772110524794,7.20183057,2070.1,2069.3,1.03689181]
[1772110526500,7.20183057,2070.0,2069.2,1.03878023]
[1772110526689,7.20183057,2069.9,2069.2,1.03878023]
[1772110526893,7.20183057,2069.8,2069.2,1.03878023]
[1772110527094,5.47014041,2070.1,2069.2,1.03878023]
[1772110527297,7.20042021,2070.0,2069.2,1.03878023]
[1772110527504,7.20042021,2069.9,2069.2,1.03878023]
[1772110527698,7.20042021,2069.8,2069.2,1.03878023]
[1772110527898,5.47014041,2070.1,2069.2,1.03878023]
[1772110528200,7.2004231,2070.0,2069.2,1.03878023]
[1772110528401,7.2004231,2069.9,2069.2,1.03878023]
[1772110528597,5.47014041,2070.1,2069.2,1.03878023]
[1772110528598,7.2004231,2069.8,2069.2,1.03878023]
[1772110528796,5.47014041,2070.1,2069.2,1.03878023]
[1772110528998,7.19871895,2070.0,2069.2,1.03878023]
[1772110529197,7.19871895,2069.9,2069.2,1.03878023]
[1772110529399,5.47014041,2070.1,2069.2,1.03878023]
[1772110529702,7.19714144,2070.0,2069.2,1.03878023]
[1772110529898,7.19714144,2069.9,2069.2,1.03878023]
[1772110530099,14.57335657,2070.2,2069.2,1.03878023]
[1772110530302,7.19634262,2070.1,2069.2,1.03878023]
[1772110530502,7.19634262,2070.0,2069.2,1.03878023]
[1772110530703,7.19634262,2069.9,2069.2,1.03878023]
[1772110530903,14.57335657,2070.2,2069.2,1.03878023]
[1772110531103,7.19504552,2070.1,2069.2,1.03878023]
[1772110531309,7.19504552,2070.0,2069.2,1.03878023]
[1772110531602,7.19504552,2069.9,2069.2,1.03878023]
[1772110531805,14.57335657,2070.2,2069.2,1.03878023]
[1772110532002,7.19419901,2070.1,2069.2,1.03878023]
[1772110532199,7.19419901,2070.0,2069.2,1.03878023]
[1772110532399,10.521,2070.2,2069.2,1.03878023]
[1772110532600,7.19364496,2070.1,2069.2,1.03878023]
[1772110532905,10.521,2070.2,2069.2,1.03878023]
[1772110533105,7.01950886,2070.1,2069.2,1.03878023]
[1772110533306,10.521,2070.2,2069.2,1.03878023]
[1772110533502,7.01939835,2070.1,2069.2,1.03878023]
[1772110533701,10.521,2070.2,2069.2,1.03878023]
[1772110533902,7.01939812,2070.1,2069.2,1.03878023]
[1772110534206,10.521,2070.2,2069.2,1.03878023]
[1772110534408,7.01935414,2070.1,2069.2,1.03878023]
[1772110534707,10.521,2070.2,2069.2,1.03878023]
[1772110534906,7.01942717,2070.1,2069.2,1.03878023]
[1772110535205,10.521,2070.2,2069.2,1.03878023]
[1772110535403,7.01933403,2070.1,2069.2,1.03878023]
[1772110535707,7.01941041,2070.0,2069.2,0.00441894]
[1772110535906,10.76252,2070.2,2069.2,0.00441894]
[1772110536107,7.01942828,2070.1,2069.2,1.04806472]
[1772110536307,7.01942828,2070.0,2069.2,1.04806472]
[1772110536502,10.76252,2070.2,2069.2,1.04806472]
[1772110536698,7.01907334,2070.1,2069.2,1.04806472]
[1772110536903,7.01907334,2070.0,2069.2,1.04806472]
[1772110537099,11.93878384,2070.2,2069.2,1.04806472]
[1772110537306,7.01931909,2070.1,2069.2,1.04806472]
[1772110537506,7.01931909,2070.0,2069.2,1.04806472]
[1772110537709,15.99114041,2070.2,2069.2,1.04806472]
[1772110538008,7.01979263,2070.1,2069.2,1.04806472]
[1772110538308,7.01979263,2070.0,2069.2,1.04806472]
[1772110538508,15.99114041,2070.2,2069.2,1.04806472]
[1772110538710,7.02001118,2070.1,2069.2,1.04806472]
[1772110539008,7.02001118,2070.0,2069.2,1.04806472]
[1772110539209,15.99114041,2070.2,2069.2,1.04806472]
[1772110539411,7.03643867,2070.1,2069.2,1.04806472]
[1772110539709,7.03643867,2070.0,2069.2,1.04806472]
[1772110539910,15.99114041,2070.2,2069.2,1.04806472]
[1772110540109,7.03643867,2070.1,2069.2,1.04806472]
[1772110540310,7.03643867,2070.0,2069.2,1.04806472]
[1772110540506,1.17626384,2069.9,2069.2,0.00441894]
[1772110541706,7.03928553,2069.8,2069.2,0.00441894]
[1772110541906,1.17626384,2069.9,2069.2,0.00441894]
[1772110542308,7.03933373,2069.8,2069.2,0.00441894]
[1772110542509,1.17626384,2069.9,2069.2,0.00441894]
[1772110542709,7.03933353,2069.8,2069.2,0.00441894]
[1772110543009,1.17626384,2069.9,2069.2,0.00441894]
[1772110543205,7.03933353,2069.8,2069.2,0.00441894]
[1772110543405,1.17626384,2069.9,2069.2,0.00441894]
[1772110543605,7.03926021,2069.8,2069.2,0.00441894]
[1772110543806,1.17626384,2069.9,2069.2,0.00441894]
[1772110544005,7.03926021,2069.8,2069.2,0.00441894]
[1772110544211,1.17626384,2069.9,2069.2,0.00441894]
[1772110544510,7.03929142,2069.8,2069.2,0.00441894]
[1772110544710,1.17626384,2069.9,2069.2,0.00441894]
[1772110545011,7.03929142,2069.8,2069.2,0.00441894]
[1772110545209,1.17626384,2069.9,2069.2,0.00441894]
[1772110545507,7.0396907,2069.8,2069.2,0.00441894]
[1772110545712,1.17626384,2069.9,2069.2,0.00441894]
[1772110545906,7.03969116,2069.8,2069.2,0.00441894]
[1772110546107,1.17626384,2069.9,2069.2,0.00441894]
[1772110546309,7.04005304,2069.8,2069.2,0.00441894]
[1772110546508,1.17626384,2069.9,2069.2,0.00441894]
[1772110546705,7.04009029,2069.8,2069.2,0.00441894]
[1772110546912,1.17626384,2069.9,2069.2,0.00441894]
[1772110547113,7.04009176,2069.8,2069.2,0.00441894]
[1772110547413,1.17626384,2069.9,2069.2,0.00441894]
[1772110547714,4.05235657,2070.1,2069.2,1.05845098]
[1772110547914,7.0397742,2070.0,2069.2,1.05845098]
[1772110548214,8.91220921,2069.9,2068.8,1.05403868]
[1772110548512,1.17626384,2069.6,2068.7,1.05403868]
[1772110548707,11.71826384,2069.6,2068.7,1.05403868]
[1772110548907,7.0413763,2069.5,2068.5,1.05048986]
[1772110549114,7.0413763,2069.4,2068.5,1.05048986]
[1772110549304,11.71826384,2069.6,2068.5,1.05490391]
[1772110549504,7.03804424,2069.5,2068.5,1.05490391]
[1772110549708,7.03804424,2069.4,2068.5,1.05490391]
[1772110549914,11.71826384,2069.6,2068.5,1.05490391]
[1772110550108,7.03804634,2069.5,2068.5,1.05490391]
[1772110550307,7.03804634,2069.4,2068.5,1.05490391]
[1772110550510,11.71826384,2069.6,2068.5,1.05490391]
[1772110550813,7.03535048,2069.5,2068.5,1.05490391]
[1772110551108,7.03535048,2069.4,2068.5,1.05490391]
[1772110551316,11.71826384,2069.6,2068.5,1.05490391]
[1772110551516,7.03324083,2069.5,2068.5,1.05490391]
[1772110551709,7.03324083,2069.4,2068.5,1.05490391]
[1772110551909,11.71826384,2069.6,2068.5,1.05490391]
[1772110552113,7.03324037,2069.5,2068.5,1.05490391]
[1772110552314,7.03324037,2069.4,2068.5,1.05490391]
[1772110552616,11.71826384,2069.6,2068.5,1.05490391]
[1772110552816,7.03172144,2069.5,2068.5,1.05490391]
[1772110553014,7.03172144,2069.4,2068.5,1.05490391]
[1772110553315,11.71826384,2069.6,2068.5,1.05490391]
[1772110553614,7.03057211,2069.5,2068.5,1.05490391]
[1772110553911,7.03057211,2069.4,2068.5,1.05490391]
[1772110554116,11.71826384,2069.6,2068.5,1.05490391]
[1772110554318,7.02986147,2069.5,2068.5,1.05490391]
[1772110554615,7.02986046,2069.4,2068.5,1.05490391]
[1772110554816,11.71826384,2069.6,2068.5,1.05490391]
[1772110555016,7.02985791,2069.5,2068.5,1.05490391]
[1772110555212,10.542,2069.6,2068.5,1.05490391]
[1772110555413,7.02861981,2069.5,2068.5,1.05490391]
[1772110555715,10.542,2069.6,2068.5,1.05490391]
[1772110555911,7.02860326,2069.5,2068.5,1.05490391]
[1772110556115,10.542,2069.6,2068.5,1.05490391]
[1772110556315,7.02842515,2069.5,2068.5,1.05490391]
[1772110556515,10.542,2069.6,2068.5,1.05490391]
[1772110556715,7.02842515,2069.5,2068.5,1.05490391]
[1772110556916,10.542,2069.6,2068.5,1.05490391]
[1772110557219,7.02827365,2069.5,2068.5,1.05490391]
[1772110557418,10.542,2069.6,2068.5,1.05490391]
[1772110557619,7.02795919,2069.5,2068.5,1.05490391]
[1772110557819,10.542,2069.6,2068.5,1.05490391]
[1772110558019,7.02795919,2069.5,2068.5,1.05490391]
[1772110558220,10.542,2069.6,2068.5,1.05490391]
[1772110558517,7.02705931,2069.5,2068.5,1.05490391]
[1772110558717,10.542,2069.6,2068.5,1.05490391]
[1772110558917,7.02705928,2069.5,2068.5,1.05490391]
[1772110559120,0.24159,2069.5,2068.5,1.05490391]
[1772110559414,7.02657807,2069.4,2068.5,1.05490391]
[1772110559618,0.24159,2069.5,2068.5,1.05490391]
[1772110559920,7.02662073,2069.4,2068.5,1.05490391]
[1772110560220,1.41785384,2069.5,2068.5,1.05490391]
[1772110560517,7.02644613,2069.4,2068.5,1.05490391]
[1772110560714,1.41785384,2069.5,2068.5,1.05490391]
[1772110560916,7.02645542,2069.4,2068.5,1.05490391]
[1772110561114,1.41785384,2069.5,2068.5,1.05490391]
[1772110561316,7.02581315,2069.4,2068.5,1.05490391]
[1772110561514,0.24159,2069.5,2068.5,1.05490391]
[1772110561715,7.02581706,2069.4,2068.5,1.05490391]
[1772110562014,0.24159,2069.5,2068.5,1.05490391]
[1772110562215,7.02564223,2069.4,2068.5,1.05490391]
[1772110562414,0.24159,2069.5,2068.5,1.05490391]
[1772110562714,7.02574892,2069.4,2068.5,1.05490391]
[1772110562914,1.17626384,2069.4,2068.5,0.00441405]
[1772110563115,1.17626384,2069.1,2068.2,1.06844943]
[1772110563314,10.661,2069.0,2068.2,1.06844943]
[1772110564119,10.66624469,2069.0,2068.2,1.07395958]
[1772110573021,10.66624469,2069.0,2068.0,1.06881039]
[1772110573022,1.17626384,2068.8,2068.0,1.06881039]
[1772110573228,1.1783134,2068.6,2068.0,1.06881039]
[1772110574224,14.70784052,2069.0,2068.0,1.07493933]
[1772110574425,10.66624469,2069.0,2068.2,1.06881406]
[1772110575626,1.1783134,2068.9,2068.2,1.06881406]
[1772110585142,10.66624469,2069.0,2068.2,1.06881406]
[1772110585344,7.02615543,2068.9,2068.2,1.06881406]
[1772110585544,10.66624469,2069.0,2068.2,1.06881406]
[1772110585746,7.0261552,2068.9,2068.2,1.06881406]
[1772110585939,10.66624469,2069.0,2068.2,1.06881406]
[1772110586144,7.0261552,2068.9,2068.2,1.06881406]
[1772110586345,10.66624469,2069.0,2068.2,1.06881406]
[1772110586544,7.02754707,2068.9,2068.2,1.06881406]
[1772110586742,7.02760408,2068.8,2068.2,1.06881406]
[1772110586938,10.66624469,2069.0,2068.2,1.06881406]
[1772110587138,7.02749006,2068.9,2068.3,1.07323293]
[1772110587348,10.66624469,2069.0,2068.3,1.07323293]
[1772110587555,7.02628579,2068.9,2068.3,1.07323293]
[1772110587846,0.00524469,2069.0,2068.5,1.07323293]
[1772110588043,0.00524469,2069.0,2068.7,1.07323567]
[1772110588243,10.697,2069.3,2068.7,1.07323567]
[1772110588442,6.98844161,2069.2,2068.7,1.07323567]
[1772110588643,6.98844161,2069.1,2068.7,1.07323567]
[1772110588843,10.697,2069.3,2068.7,1.07323567]
[1772110589043,6.98841398,2069.2,2068.7,1.07323567]
[1772110589238,0.00414002,2069.2,2068.7,1.07323567]
[1772110607861,10.882,2069.6,2068.9,1.02093386]
[1772110608256,6.94715397,2069.5,2068.9,1.02093386]
[1772110608453,10.882,2069.6,2068.9,1.02093386]
[1772110608856,10.88556163,2069.6,2068.9,1.02093386]
[1772110611762,1.1783134,2070.1,2069.3,1.01925232]
[1772110612360,10.919,2070.0,2069.3,1.01925232]
[1772110612661,10.92251941,2070.0,2069.3,1.01925232]
[1772110614961,0.00986588,2069.9,2069.3,1.01925232]
[1772110623359,0.00992584,2069.4,2068.8,0.98618486]
[1772110623565,1.1783134,2069.3,2068.8,0.98618486]
[1772110623764,12.17623924,2069.5,2068.8,0.98618486]
[1772110624471,10.9983458,2069.8,2069.0,0.98621675]
[1772110626668,12.1766592,2069.8,2069.0,0.98621675]
[1772110627064,10.9983458,2069.8,2069.0,0.98621675]
[1772110628269,10.989,2069.8,2069.0,0.98621675]
[1772110628470,10.989,2069.8,2069.2,0.98908906]
[1772110633071,11.00702106,2069.8,2069.2,0.98908906]
[1772110633369,0.01802106,2069.5,2069.2,0.98908906]
[1772110634582,0.01802106,2069.5,2068.9,0.97964337]
[1772110636776,0.02418215,2069.7,2068.9,0.97964337]
[1772110636973,10.989,2069.8,2068.9,0.97964337]
[1772110637277,11.01231578,2069.8,2068.9,0.97964337]
[1772110637873,0.02683519,2070.0,2069.1,0.97602561]
[1772110640984,7.31870082,2069.9,2069.1,0.97602561]
[1772110641177,0.01667523,2069.9,2069.1,0.97602561]
[1772110642877,0.00351941,2070.0,2069.1,0.97602561]
[1772110643181,7.30458938,2069.9,2069.1,0.97602561]
[1772110643375,0.02008974,2070.0,2069.1,0.97602561]
[1772110643580,7.30443989,2069.9,2069.1,0.97602561]
[1772110643870,0.02008974,2070.0,2069.1,0.97602561]
[1772110644076,7.30443989,2069.9,2069.1,0.97602561]
[1772110644275,0.02008974,2070.0,2069.1,0.97602561]
[1772110644476,7.30430487,2069.9,2069.1,0.97602561]
[1772110644775,0.02008974,2070.0,2069.1,0.97602561]
[1772110644973,7.30430487,2069.9,2069.1,0.97602561]
[1772110645177,0.02008974,2070.0,2069.1,0.97602561]
[1772110645479,7.3041737,2069.9,2069.1,0.97602561]
[1772110645680,0.02008974,2070.0,2069.1,0.97602561]
[1772110645875,7.3041737,2069.9,2069.1,0.97602561]
[1772110646081,0.02008974,2070.0,2069.1,0.97602561]
[1772110646274,7.30400239,2069.9,2069.1,0.97602561]
[1772110646477,0.02008974,2070.0,2069.1,0.97602561]
[1772110646680,7.30404309,2069.9,2069.1,0.97602561]
[1772110646879,0.02008974,2070.0,2069.1,0.97602561]
[1772110647179,7.30404264,2069.9,2069.1,0.97602561]
[1772110647377,0.02008974,2070.0,2069.1,0.97602561]
[1772110647579,7.30391751,2069.9,2069.1,0.97602561]
[1772110647882,0.02008974,2070.0,2069.1,0.97602561]
[1772110648082,7.30391705,2069.9,2069.1,0.97602561]
[1772110648384,0.02008974,2070.0,2069.1,0.97602561]
[1772110648583,7.30379425,2069.9,2069.1,0.97602561]
[1772110648784,0.02008974,2070.0,2069.1,0.97602561]
[1772110648985,7.30379421,2069.9,2069.1,0.97602561]
[1772110649186,0.02008974,2070.0,2069.1,0.97602561]
[1772110649374,7.30367764,2069.9,2069.1,0.97602561]
[1772110649575,0.01008974,2070.0,2069.1,0.97602561]
[1772110649780,7.30367764,2069.9,2069.1,0.97602561]
[1772110649984,0.01008974,2070.0,2069.1,0.97602561]
[1772110650186,7.31274163,2069.9,2069.1,0.97602561]